Cogmind - Beta 14 @@@ ROGUE MODE // 2024.08.26 @ 19:01:56 Player: szymekc Result: Destroyed by 2O-QRD(R) with Subdweller Beam Cannon Performance ------------- Evolutions (0) 0 Regions Visited (2) 400 Robots Destroyed (27) 135 Value Destroyed (682) 682 Prototype IDs (0) 0 Alien Tech Used (0) 0 Bonus (0) 0 TOTAL SCORE: 1217 Bonus ------- None Cogmind --------- Core Integrity 0/250 Matter 280/300 Energy 184/200 System Corruption 0% Temperature Cool (17) Movement Treading (250) Ox1 Location -10/Subcaves Parts ------- > --- POWER (1) -------- Subdweller Power Source > --- PROPULSION (2) --- Light Treads Spiked Treads > --- UTILITY (2) ------ Large Storage Unit Seismic Detector > --- WEAPON (2) ------- Subdweller Beam Cannon Subdweller Beam Cannon > --- INVENTORY (15) --- Wheel Scrap Shield Subdweller Laser Mining Laser Peak State ------------ > --- POWER ------------ Subdweller Power Source > --- PROPULSION ------- Light Treads Spiked Treads > --- UTILITY ---------- Scrap Shield > --- WEAPON ----------- Subdweller Laser Subdweller Beam Cannon > --- INVENTORY -------- Wheel Large Storage Unit Seismic Detector Light Armor Plating Mining Laser [Rating: 13] Favorites ----------- Power Subdweller Power Source Engine Subdweller Power Source Propulsion Aluminum Leg Treads Light Treads Leg Aluminum Leg Wheel Wheel Utility Scrap Shield Device Seismic Detector Storage Large Storage Unit Protection Scrap Shield Weapon Subdweller Beam Cannon Energy Gun Subdweller Laser Energy Cannon Subdweller Beam Cannon Ballistic Gun Assault Rifle Ballistic Cannon Light Cannon Special Weapon Mining Laser Build | -11 -10 -10 ------- Run | Yrd Mat Sub Slots Evolved . | . . . Power . | . . . Propulsion . | . . . Utility . | . . . Weapon . | . . . Parts Attached 40 | 3 21 16 Power 4 | . 2 2 Engine 4 | . 2 2 Core . | . . . Reactor . | . . . Propulsion 8 | 2 4 2 Treads 4 | 2 . 2 Leg 3 | . 3 . Wheel 1 | . 1 . Hover . | . . . Flight . | . . . Utility 11 | . 6 5 Device 3 | . 1 2 Storage 4 | . 3 1 Processor . | . . . Hackware . | . . . Protection 4 | . 2 2 Artifact . | . . . Weapon 17 | 1 9 7 Energy Gun 5 | 1 3 1 Energy Cannon 6 | . 2 4 Ballistic Gun 3 | . 3 . Ballistic Cannon 1 | . 1 . Launcher . | . . . Special Weapon 2 | . . 2 Impact Weapon . | . . . Slashing Weapon . | . . . Piercing Weapon . | . . . Special Melee Weapon . | . . . Unidentified Prototypes . | . . . Parts Lost 1 | . 1 . Power . | . . . Propulsion 1 | . 1 . Utility . | . . . Weapon . | . . . Highest Loss Streak 1 | . 1 . To Critical Strikes . | . . . Average Slot Usage (%) 91 | . 96 87 Engine 14 | . 14 14 Treads 13 | . 5 20 Leg 13 | . 22 7 Device 1 | . . 2 Storage 7 | . 14 2 Protection 11 | . 10 11 Energy Gun 3 | . 4 2 Energy Cannon 18 | . 11 24 Ballistic Gun 2 | . 5 . Ballistic Cannon 2 | . 6 . Peak Build Rating 13 | 6 9 13 Average Rating 9 | 6 7 11 On Entrance 6 | 6 6 8 Naked Turns . | . . . Heaviest Build 42 | 12 34 42 Greatest Support 40 | 40 40 40 Greatest Overweight (x) 2 | . 2 1 Average Overweight (x) . | . . . Largest Inventory Capacity 15 | 8 15 15 Average Capacity 8 | 8 10 6 Most Carried 11 | 6 11 11 Average Carried 6 | 4 8 5 Final Capacity 15 | 8 15 15 Final Carried 11 | 4 11 5 Class Distribution -------------------- 59% | Mutant 40% | Subdweller-Mutant Dominant Class ---------------- Mutant | -10/Materials Subdweller-Mutant | -10/Subcaves Resources | -11 -10 -10 ----------- Run | Yrd Mat Sub Matter Collected 705 | 206 323 176 Remotely . | . . . Salvage Created 834 | . 255 579 Parts 40 | . 14 26 Haulers Intercepted 1 | . 1 . Recyclers Shooed . | . . . Parts Field Recycled . | . . . Retrieved Matter . | . . . Parts Self-Destructed 13 | . . 13 Prevented . | . . . Kills | -11 -10 -10 ------- Run | Yrd Mat Sub Combat Hostiles Destroyed 23 | . 9 14 Guns 3 | . 2 1 Cannons 19 | . 7 12 Classes Destroyed 7 | . 5 2 Worker 1 | . 1 . Hauler 1 | . 1 . Turret 1 | . . 1 Watcher 1 | . 1 . Swarmer 10 | . 6 4 Grunt 6 | . 3 3 Subdweller 7 | . . 7 Best Kill Streak 4 | . 3 4 Combat Bots Only 4 | . 3 4 Max Kills in Single Turn 2 | . 2 1 Gunslinging . | . . . Exploded . | . . . Melee . | . . . Uniques/NPCs Destroyed . | . . . Combat | -11 -10 -10 -------- Run | Yrd Mat Sub Hostile Shots Fired 159 | . 60 99 Missed 48 | . 15 33 Damage Taken 1361 | . 501 860 Core 276 | . 114 162 Absorbed by Shields . | . . . Core Remaining (%) 100 | 100 . . Volleys Fired 75 | . 28 47 Largest 2 | . 2 2 Hottest 160 | . 112 160 Shots Fired 135 | . 56 79 Gun 35 | . 29 6 Cannon 92 | . 27 65 Launcher . | . . . Special 8 | . . 8 Kinetic 53 | . 53 . Thermal 82 | . 3 79 Explosive . | . . . Electromagnetic . | . . . Robot Hit Streak 11 | . 8 11 Robot Miss Streak 5 | . 5 2 Penetration Max . | . . . Secondary Targets . | . . . Shots Hit Robots 81 | . 30 51 Core Hits 33 | . 14 19 Critical Kills 1 | . . 1 Critical Parts Destroyed . | . . . Critical Strikes 2 | . 1 1 Burn 1 | . 1 . Meltdown 1 | . . 1 Melee Attacks . | . . . Impact . | . . . Slashing . | . . . Piercing . | . . . Sneak Attacks . | . . . Combat Hostiles . | . . . Follow-up Attacks . | . . . Damage Inflicted 1619 | . 470 1149 Guns 222 | . 186 36 Cannons 1393 | . 280 1113 Explosions . | . . . Melee . | . . . Ramming 4 | . 4 . Kinetic 421 | . 421 . Thermal 1194 | . 45 1149 Explosive . | . . . Electromagnetic . | . . . Impact . | . . . Slashing . | . . . Piercing . | . . . Highest Corruption . | . . . Average Corruption . | . . . Corruption Purged . | . . . Corruption Blocked . | . . . Overload Shots . | . . . Overflow Damage 43 | . 11 32 Projectiles 43 | . 11 32 Explosions . | . . . Melee . | . . . Knockbacks 5 | . 5 . Impact . | . . . Kinetic 5 | . 5 . Secondary . | . . . Self-Inflicted Damage . | . . . Shots . | . . . Rammed . | . . . Targets Rammed 3 | . 3 . Kicked 3 | . 3 . Crushed . | . . . Highest Temperature 204 | . 82 204 Average Temperature 35 | . 28 42 Received Heat Transfer 354 | . 153 201 Siege Activations . | . . . Robots Corrupted . | . . . Combat Hostiles . | . . . Parts Fried . | . . . Impact Corruptions . | . . . Robots Melted 1 | . . 1 Combat Hostiles 1 | . . 1 Parts Melted 2 | . . 2 Heat Transferred 2085 | . 185 1900 Parts Sabotaged . | . . . Parts Stolen . | . . . Parts Stripped . | . . . Power Chain Reactions . | . . . Alert | -11 -10 -10 ------- Run | Yrd Mat Sub Peak Influence 274 | . 274 . Initial . | . . . Average 63 | . 63 . Maximum Alert Level 1 | . 1 . Low Security (%) 90 | 100 90 . Level 1 9 | . 9 . Level 2 . | . . . Level 3 . | . . . Level 4 . | . . . Level 5 . | . . . High Security . | . . . Max Security . | . . . Squads Dispatched 1 | . 1 . Investigation 1 | . 1 . Extermination . | . . . Reinforcement . | . . . Assault . | . . . Garrison . | . . . Intercept . | . . . Searches Triggered . | . . . Construction Impeded . | . . . Haulers Reinforced . | . . . Active Scanning Responses . | . . . Cargo Convoy Interrupts . | . . . Stealth | -11 -10 -10 --------- Run | Yrd Mat Sub Distress Signals . | . . . Communications Jammed . | . . . Distress Signals . | . . . Times Spotted 39 | . 19 20 Peak Tracking Total 4 | . 4 4 Tactical Retreats 4 | . . 4 Traps | -11 -10 -10 ------- Run | Yrd Mat Sub Traps Triggered 2 | . 2 . Indirectly . | . . . Trap Hack Attempts . | . . . Triggered . | . . . Disarmed . | . . . Reprogrammed . | . . . Reused . | . . . Traps Extracted . | . . . Installed . | . . . Triggered . | . . . Machines | -11 -10 -10 ---------- Run | Yrd Mat Sub Machines Disabled 3 | . 1 2 Max in Single Turn 1 | . 1 1 Machines Repaired . | . . . Machines Dismantled . | . . . Machines Sabotaged . | . . . Overloaded Fab Kills . | . . . Hacking | -11 -10 -10 --------- Run | Yrd Mat Sub Machines Accessed 10 | . 8 2 Terminals 6 | . 6 . Fabricators . | . . . Repair Stations . | . . . Recycling Units 2 | . 2 . Scanalyzers . | . . . Garrison Access . | . . . Total Hacks 23 | . 20 3 Successful 14 | . 11 3 Failed 9 | . 9 . Catastrophic 2 | . 2 . Database Lockouts . | . . . Manual 15 | . 15 . Terminals 16 | . 16 . Fabricators . | . . . Repair Stations . | . . . Recycling Units 4 | . 4 . Scanalyzers . | . . . Garrison Access . | . . . Terminal Hacks 3 | . . 3 Record 1 | . . 1 Open Door 1 | . . 1 Release Object 1 | . . 1 Fabricator Hacks . | . . . Repair Station Hacks . | . . . Recycling Unit Hacks 2 | . 2 . Retrieve Components 2 | . 2 . Scanalyzer . | . . . Garrison Access Hacks . | . . . Unauthorized Hacks 9 | . 9 . Terminals 8 | . 8 . Assimilate 1 | . 1 . Botnet 1 | . 1 . Operators 1 | . 1 . Skim 5 | . 5 . Fabricators . | . . . Repair Stations . | . . . Recycling Units 1 | . 1 . Tunnel 1 | . 1 . Scanalyzers . | . . . Garrison Access . | . . . Data Cores Recovered . | . . . Used . | . . . Hacking Detections 7 | . 7 . Full Trace Events . | . . . Feedback Events . | . . . Feedback Blocked . | . . . Robot Schematics Acquired . | . . . Robots Built . | . . . Authchips . | . . . Time . | . . . Total Robot Build Rating . | . . . Part Schematics Acquired . | . . . Parts Built . | . . . Authchips . | . . . Time . | . . . Total Part Build Rating . | . . . Parts Repaired . | . . . Time . | . . . Parts Recycled . | . . . Recycled Matter . | . . . Retrieved Matter . | . . . Retrieved Components 11 | . 11 . Parts Scanalyzed . | . . . Part Schematics Acquired . | . . . Parts Damaged . | . . . Bothacking | -11 -10 -10 ------------ Run | Yrd Mat Sub Used RIF Installer . | . . . Robots Hacked . | . . . Non-combat . | . . . Combat . | . . . Robot Hacks Applied . | . . . Relay Couplers Released . | . . . Fabnet Peak Effective % . | . . . Robots Rewired . | . . . Allies Hacked . | . . . Hacks Repelled . | . . . Allies | -11 -10 -10 -------- Run | Yrd Mat Sub Total Allies 1 | . 1 . Largest Group 1 | . 1 . Highest-Rated Group 10 | . 10 . Highest-Rated Ally 10 | . 10 . Total Orders . | . . . Ally Attacks . | . . . Total Damage . | . . . Kills . | . . . Allies Corrupted . | . . . Allies Melted . | . . . Intel | -11 -10 -10 ------- Run | Yrd Mat Sub Robot Analysis Total . | . . . Derelict Logs Recovered 1 | . . 1 Drone Launches . | . . . Drone Recoveries . | . . . Exploration | -11 -10 -10 ------------- Run | Yrd Mat Sub Turns Passed 3160 | 9 1362 1789 Spaces Moved 1436 | 3 628 805 Core . | . . . Treads 862 | 3 124 735 Legs 568 | . 498 70 Wheels 6 | . 6 . Hover . | . . . Flight . | . . . Fastest Speed 95 | 160 95 160 Average Speed 178 | 160 162 190 Slowest Speed 260 | 160 260 250 Overloaded Moves . | . . . Propulsion Burnouts . | . . . Robots Hopped . | . . . Cave-ins Triggered . | . . . Exploration Rate (%) 42 | 2 91 35 Regions Visited 2 Branch Regions 1 Pre-discovered Areas 1 | . 1 . Known Exits Taken . | . . . Unknown Exits Taken 2 | 1 1 . Scrap Searched 3 | . . 3 Spaces Dug 4 | . . 4 Terrain Destroyed 7 | . . 7 Melee . | . . . Projectile 7 | . . 7 AOE . | . . . Terrain Rammed . | . . . Walls Destroyed . | . . . Machines Disabled . | . . . Actions | -11 -10 -10 --------- Run | Yrd Mat Sub Total 1881 | 7 909 965 Wait 273 | . 205 68 Move 1434 | 2 627 805 Hop . | . . . Pick Up 21 | . 15 6 Fast Attach 12 | . 8 4 Attach 4 | . 2 2 Detach . | . . . Swap 24 | 3 11 10 Drop 26 | 2 10 14 Fire 75 | . 28 47 Melee . | . . . Ram . | . . . Kick 3 | . 3 . Crush . | . . . Escape Stasis . | . . . Rewire . | . . . Trap . | . . . Miscellaneous 9 | . . 9 Route ------- -11/Scrapyard -10/Materials (discovered 5 exits: *Mat x3 / [*Min] / *Sub) -10/Subcaves (discovered 3 exits: Mat x2 / [*Rec]) History --------- Turn | Location | Event 7 | -11/Scrapyard | Discovered new exit (range 2) 10 | -11/Scrapyard | Entered Materials 147 | -10/Materials | Discovered new exit (range 3) 339 | -10/Materials | Build established: Mutant 454 | -10/Materials | Discovered new exit (range 15) 892 | -10/Materials | Discovered new exit (range 12) 957 | -10/Materials | Learned Storage stockpile data 1034 | -10/Materials | Identified exit to Materials 1174 | -10/Materials | Discovered new exit (range 6) 1199 | -10/Materials | Learned Storage garrison access intel 1255 | -10/Materials | Learned Storage interactive machine intel 1372 | -10/Materials | Entered Subcaves 1373 | -10/Subcaves | Identified exit to Materials 1516 | -10/Subcaves | Core integrity fell below 50% 1859 | -10/Subcaves | Learned Materials stockpile data 1952 | -10/Subcaves | Shifting Twisted Machinery released Sub. Laser 2060 | -10/Subcaves | Build established: Subdweller-Mutant 2165 | -10/Subcaves | Shifting Twisted Machinery released Piercing Trap 2169 | -10/Subcaves | Core integrity fell below 20% 2729 | -10/Subcaves | Ambushed by Subdweller buried in earth 2954 | -10/Subcaves | Discovered new exit (range 8) 2994 | -10/Subcaves | A swath of the cavern ceiling suddenly collapsed 3161 | -10/Subcaves | Destroyed by 2O-QRD(R) with Subdweller Beam Cannon Last Messages --------------- 03013_ Acquired Scrap Shield. 03056_ Connecting with UFD SUBCON Station... 03056_ Current location identified: Subcaves >>Open Door Sealed Heavy Doors opened. 03069_ Connecting with SUBCON Basin Controls... >>Record "Subatomizer Containment" Subatomizers are really quite dangerous, especially when stimulated during the collection process in preparation for SEP insertion. Secure containment is priority number one! Although mostly just a persistent nuisance in their natural Subcaves environment where a certain balance has been achieved, there is a high probability that sudden introduction into previously unexposed areas could cause more extreme side effects. Take all precautions to prevent this from happening. >>Release Inventory Accessing inventory controls... Collection purity confirmed 100%... Ejecting SUBCON Basin... Delivery behind schedule, handle with care! 03160_ Sub. Beam Cannon shoots sparks and powers down. Map ----- +----------------------------------------------------+ | ????????????????????????????????????###???## =##" | | ???????????????????????????????????## ##### #" | | ???????????????????????????????????# =% | | ???????????????????????????????????## | | ????????????????????????????????????## # " | | ?????????????????????????????????????# ### #### | | ?????????????????????????????????????# # #### | | ?????????????????????????????????????## ## | | ??????????????????????????????????######## | | ?????????????????????????????????## ??# | | ????????????????????????????????## ??## | | ????????????????????????????????? ?#### | | ?????????????????????????????????# ## ### | | ?????????????????????????????????# ?# #### % | | ??????????????????????########???# ### # ### | | ?????????????########## ##??###### "" | | ?????????????#"" "#"X### ##??# ""##"# | | ?????????????#"" ## ####### " | | ?????????????#"" "#" # # ## | | ?????????????#""& "#" # # | | ?????????????#"X "### # % | | ?????????????#"""""#?## ## ######## % | | ?????????????#######??### #??????## ## ### | | ???????????????????????# ##???????#### ###### | | ???????????????????????## ##????????#" "#?? | | ????????????????????????#@ #?????????# #?? | | ????????????????????????##R#?????????# % #?? | | ????????????????????????##R#?????????# "#?? | | ????????????????????????# #?????????#" " " "#?? | | ????????????????????????# #?????????#" "" "" "#?? | | ??????????????????????# #?????????#####<#####?? | | ???????????????????? ?????????????###?????? | | ?????????????????# # # ##????????????????????? | | ???????????????# #######?????????????????????? | | ???????????????# #?????????????????????????????? | | ??????????????# ???????????????????????????????? | | ?????????????? ?????????????????????????????????? | | ??????????????#??????????????????????????????????? | | ?????????????????????????????????????????????????? | | ?????????????????????????????????????????????????? | | ?????????????????????????????????????????????????? | | ?????????????????????????????????????????????????? | | ?????????????????????????????????????????????????? | | ?????????????????????????????????????????????????? | | ?????????????????????????????????????????????????? | | ?????????????????????????????????????????????????? | | ?????????????????????????????????????????????????? | | ?????????????????????????????????????????????????? | | ?????????????????????????????????????????????????? | | ?????????????????????????????????????????????????? | +----------------------------------------------------+ Best States ------------- Heat Dissipation 39 Energy Generation 15 Energy Capacity 250 Matter Stores 300 Matter Capacity 300 Sight Range 16 Terrain Scan Density 10 Armor Coverage 800 Evasion (%) 55 Recoil Reduction 2 Item Schematics ----------------- None Robot Schematics ------------------ None Fabricated ------------ Nothing Alien Tech Used ----------------- None Achievements -------------- None Challenges ------------ None Game ------ Seed ZhirovTrackerVibroblade Manual? 0 Play Time 00:17:07 Cumulative 372.0 hours Start 2024.08.26 @ 18:47:07 End 2024.08.26 @ 19:01:56 Sessions 1 Manual Loads 0 Difficulty Rogue Special Mode None Game No. 138 Rogue 136 Adventurer 2 Explorer 0 Win Type - Total 17 Types 7/0/8/1/0/0/0/1/0 Lore% 75 Gallery% 84 Achievement% 75 Wizard Run 0 Options --------- Layout 0 ASCII 0 Keyboard 0 Movement Numpad Keybinds 0 Fullscreen 2 Font 24/Smallcaps Map View 76x50 Zoom Use 0% Tactical HUD 1 Map Filters NONE Filters NONE Steam 1 RUN: 01a44a55-da70-4a69-9c15-a7faf7a10677